fUSD/lending_fUSD_20260408
["ID","MTS","AMOUNT","RATE_DAILY","PERIOD"]
[420020733,1775621434552,-83896.96189788,0.00011005,2]
[420020734,1775621434562,-40818.12941672,0.00011005,2]
[420020735,1775621434575,-127409.10654342,0.00011005,2]
[420020736,1775621434587,-1254.41808677,0.00011005,2]
[420020737,1775621438472,-160.0,0.00010896,2]
[420020738,1775621438482,-160.0,0.00010896,2]
[420020739,1775621438492,-1216.315502,0.00010896,2]
[420020740,1775621438501,-519.564117,0.00010896,2]
[420020741,1775621438511,-2272.631005,0.00010896,2]
[420020742,1775621438521,-879.128235,0.00010896,2]
[420020743,1775621438530,-240.0,0.00010941,2]
[420020744,1775621438539,-1185830.92230199,0.00011005,2]
[420020745,1775621438549,-150.0,0.00011006,2]
[420020746,1775621438558,-150.0,0.00011007,2]
[420020747,1775621438568,-150.0,0.00011009,2]
[420020748,1775621438577,-150.0,0.00011009,2]
[420020749,1775621438587,-1715.0,0.00011009,2]
[420020750,1775621438597,-417.0,0.00011009,2]
[420020751,1775621438606,-1893.0,0.0001101,2]
[420020752,1775621438616,-150.0,0.00011013,2]
[420020753,1775621438626,-151.502,0.00011022,2]
[420020754,1775621438635,-150.0,0.00011023,2]
[420020755,1775621438644,-150.0,0.00011026,2]
[420020756,1775621438653,-150.0,0.00011027,2]
[420020757,1775621438663,-241.0,0.00011031,2]
[420020758,1775621438672,-405.0,0.00011031,2]
[420020759,1775621438681,-311.0,0.00011032,2]
[420020760,1775621438689,-150.0,0.00011033,2]
[420020761,1775621438699,-150.0,0.0001104,2]
[420020762,1775621438708,-150.0,0.00011048,2]
[420020763,1775621438718,-150.0,0.0001105,2]
[420020764,1775621438728,-922.0,0.00011052,2]
[420020765,1775621438738,-464.0,0.00011052,2]
[420020766,1775621438747,-150.0,0.00011052,2]
[420020767,1775621438756,-1626.0,0.00011054,2]
[420020768,1775621438766,-150.0,0.00011059,2]
[420020769,1775621438775,-150.0,0.00011059,2]
[420020770,1775621438784,-150.0,0.00011069,2]
[420020771,1775621438794,-500.53661767,0.00011073,2]
[420020772,1775621438803,-500.0,0.00011073,2]
[420020773,1775621438811,-500.0,0.00011073,2]
[420020774,1775621438821,-500.0,0.00011073,2]
[420020775,1775621438830,-500.0,0.00011073,2]
[420020776,1775621438840,-1457.0,0.00011074,2]
[420020777,1775621438849,-366.0,0.00011074,2]
[420020778,1775621438859,-150.0,0.00011076,2]
[420020779,1775621438868,-150.0,0.00011076,2]
[420020780,1775621438878,-542.0,0.00011076,2]
[420020781,1775621438888,-150.0,0.00011078,2]
[420020782,1775621438898,-150.0,0.00011079,2]
[420020783,1775621438907,-150.0,0.00011085,2]
[420020784,1775621438916,-150.0,0.00011086,2]
[420020785,1775621438926,-150.0,0.0001109,2]
[420020786,1775621438936,-150.0,0.00011094,2]
[420020787,1775621438945,-1263.0,0.00011096,2]
[420020789,1775621438954,-150.0,0.00011105,2]
[420020790,1775621438963,-150.0,0.0001111,2]
[420020791,1775621438972,-150.0,0.00011111,2]
[420020792,1775621438981,-150.0,0.00011116,2]
[420020793,1775621438991,-150.0,0.00011116,2]
[420020794,1775621439000,-1784.0,0.00011118,2]
[420020795,1775621439010,-150.0,0.00011123,2]
[420020796,1775621439020,-150.0,0.0001113,2]
[420020797,1775621439029,-150.0,0.00011131,2]
[420020798,1775621439038,-150.0,0.00011132,2]
[420020799,1775621439048,-150.0,0.00011136,2]
[420020800,1775621439057,-150.0,0.00011142,2]
[420020801,1775621439067,-150.0,0.00011142,2]
[420020802,1775621439077,-6586.93748146,0.00011149,2]
[420020803,1775621439088,-150.0,0.00011153,2]
[420020804,1775621439098,-150.0,0.00011153,2]
[420020805,1775621439108,-150.0,0.00011158,2]
[420020806,1775621439118,-150.0,0.00011159,2]
[420020807,1775621439128,-150.0,0.0001116,2]
[420020808,1775621439138,-150.0,0.00011162,2]
[420020809,1775621439147,-150.0,0.00011165,2]
[420020810,1775621439156,-371.0,0.00011167,2]
[420020811,1775621439166,-150.0,0.00011174,2]
[420020812,1775621439175,-150.0,0.00011184,2]
[420020813,1775621439185,-150.0,0.00011188,2]
[420020814,1775621439194,-150.0,0.00011191,2]
[420020815,1775621439203,-2000.0,0.00011192,2]
[420020816,1775621439213,-150.0,0.00011195,2]
[420020817,1775621439223,-150.0,0.00011196,2]
[420020818,1775621439233,-5533.0,0.000112,3]
[420020819,1775621439242,-150.0,0.00011201,2]
[420020820,1775621439252,-150.0,0.00011209,2]
[420020821,1775621439262,-150.0,0.00011209,2]
[420020822,1775621439272,-150.0,0.00011211,2]
[420020823,1775621439281,-150.0,0.00011214,2]
[420020824,1775621439291,-150.0,0.00011216,2]
[420020825,1775621439300,-150.0,0.00011227,2]
[420020826,1775621439310,-150.0,0.00011227,2]
[420020827,1775621439319,-150.0,0.00011229,2]
[420020828,1775621439329,-150.0,0.00011229,2]
[420020829,1775621439339,-1001.50560966,0.00011229,2]
[420020830,1775621439350,-8593.873331,0.0001123,2]
[420020831,1775621439360,-2326.6618,0.00011232,2]
[420020832,1775621439372,-310.8644,0.00011232,2]
[420020833,1775621439382,-150.0,0.00011233,2]
[420020834,1775621439392,-150.0,0.00011236,2]
[420020835,1775621439401,-150.0,0.00011237,2]
[420020836,1775621439411,-150.0,0.00011237,2]
[420020837,1775621439421,-150.0,0.00011239,2]
[420020838,1775621439431,-2500.0,0.00011242,2]
[420020839,1775621439441,-173.924,0.00011244,2]
[420020840,1775621439450,-2753.816,0.00011244,2]
[420020841,1775621439459,-1007.62248964,0.00011244,2]
[420020842,1775621439469,-20093.84505009,0.00011244,2]
[420020843,1775621439478,-255.34786142,0.00011249,2]
[420020844,1775621439487,-168.08863514,0.00011249,2]
[420020845,1775621439498,-6277.0428585,0.00011249,2]
[420020846,1775621439507,-500.0,0.00011251,2]
[420020847,1775621439517,-150.0,0.00011258,2]
[420020848,1775621439526,-1000.0,0.0001126,2]
[420020849,1775621439536,-150.0,0.00011263,2]
[420020850,1775621439546,-150.0,0.00011265,2]
[420020851,1775621439556,-150.0,0.00011267,2]
[420020852,1775621439566,-150.0,0.00011269,2]
[420020853,1775621439575,-150.0,0.00011272,2]
[420020854,1775621439585,-169.66281329,0.00011273,2]
[420020855,1775621439594,-500.0,0.00011273,2]
[420020856,1775621439603,-500.0,0.00011273,2]
[420020857,1775621439613,-502.49539828,0.00011273,2]
[420020858,1775621439622,-500.0,0.00011273,2]
[420020859,1775621439631,-501.51019132,0.00011273,2]
[420020860,1775621439640,-500.0,0.00011273,2]
[420020861,1775621439649,-500.0,0.00011273,2]
[420020862,1775621439659,-455.42271784,0.00011273,2]
[420020863,1775621439668,-150.0,0.00011276,2]
[420020864,1775621439678,-150.0,0.00011276,2]
[420020865,1775621439688,-150.0,0.00011279,2]
[420020866,1775621439698,-150.0,0.0001129,2]
[420020867,1775621439707,-150.0,0.00011291,2]
[420020868,1775621439717,-150.0,0.000113,2]
[420020869,1775621439726,-150.0,0.00011305,2]
[420020870,1775621439736,-150.0,0.00011306,2]
[420020871,1775621439746,-150.0,0.00011307,2]
[420020872,1775621439755,-150.0,0.00011316,2]
[420020873,1775621439765,-150.0,0.00011317,2]
[420020874,1775621439774,-150.0,0.00011321,2]
[420020875,1775621439783,-151.0,0.00011325,2]
[420020876,1775621439793,-151.0,0.00011325,2]
[420020877,1775621439802,-151.0,0.00011325,2]
[420020878,1775621439811,-151.0,0.00011325,2]
[420020879,1775621439821,-151.0,0.00011325,2]
[420020880,1775621439831,-151.0,0.00011325,2]
[420020881,1775621439840,-500.0,0.00011325,2]
[420020882,1775621439849,-151.0,0.00011325,2]
[420020883,1775621439858,-500.0,0.00011325,2]
[420020884,1775621439867,-151.0,0.00011325,2]
[420020885,1775621439877,-500.0,0.00011325,2]
[420020886,1775621439886,-151.0,0.00011325,2]
[420020887,1775621439896,-500.0,0.00011325,2]
[420020888,1775621439905,-151.0,0.00011325,2]
[420020889,1775621439915,-200.0,0.00011325,2]
[420020890,1775621439923,-500.0,0.00011325,2]
[420020891,1775621439934,-151.0,0.00011325,2]
[420020892,1775621439943,-500.0,0.00011325,2]
[420020893,1775621439952,-151.0,0.00011325,2]
[420020894,1775621439962,-500.0,0.00011325,2]
[420020895,1775621439971,-151.0,0.00011325,2]
[420020896,1775621439979,-500.0,0.00011325,2]
[420020897,1775621439989,-151.0,0.00011325,2]
[420020898,1775621439998,-500.0,0.00011325,2]
[420020899,1775621440007,-151.0,0.00011325,2]
[420020900,1775621440017,-500.0,0.00011325,2]
[420020901,1775621440026,-519.36289267,0.00011325,2]
[420020902,1775621440036,-500.0,0.00011325,2]
[420020903,1775621440045,-151.0,0.00011325,2]
[420020904,1775621440055,-151.0,0.00011325,2]
[420020905,1775621440064,-151.0,0.00011325,2]
[420020906,1775621440074,-151.0,0.00011325,2]
[420020907,1775621440084,-1199.20597015,0.00011325,2]
[420020908,1775621440093,-151.0,0.00011325,2]
[420020909,1775621440102,-153.43679859,0.00011325,2]
[420020910,1775621440410,-151.63797366,0.00011325,2]
[420020911,1775621440421,-200.0,0.00011331,2]
[420020912,1775621440431,-78805.31420206,0.00011332,2]
[420020913,1775621440441,-203.45692987,0.00011334,2]
[420020915,1775621440451,-166.66,0.00011335,2]
[420020916,1775621440461,-150.0,0.00011342,2]
[420020919,1775621440471,-200.0,0.00011342,2]
[420020921,1775621440481,-202.16587278,0.00011342,2]
[420020923,1775621440490,-277.86809384,0.00011342,2]
[420020925,1775621440500,-163.54373564,0.00011342,2]
[420020926,1775621440509,-299.8368581,0.00011342,2]
[420020927,1775621440519,-257.21753865,0.00011342,2]
[420020928,1775621440528,-156.07695679,0.00011342,2]
[420020929,1775621440539,-154.96470644,0.00011342,2]
[420020930,1775621440548,-262.25985033,0.00011342,2]
[420020931,1775621440558,-235.51154759,0.00011342,2]
[420020932,1775621440567,-163.3205706,0.00011342,2]
[420020933,1775621440578,-160.91577892,0.00011342,2]
[420020934,1775621440587,-213.91542621,0.00011342,2]
[420020935,1775621440596,-200.0,0.00011343,2]
[420020936,1775621440605,-200.0,0.00011343,2]
[420020937,1775621440614,-200.0,0.00011343,2]
[420020938,1775621440624,-590.38582432,0.00011344,2]
[420020939,1775621440634,-151.0,0.00011344,2]
[420020940,1775621440643,-1500000.0,0.00011344,2]
[420020941,1775621440654,-6001.13247453,0.00011352,2]
[420020942,1775621440664,-500.0,0.00011373,2]
[420020943,1775621440673,-361.44642401,0.00011373,2]
[420020944,1775621440683,-500.0,0.00011373,2]
[420020945,1775621440693,-5533.0,0.000114,5]
[420020946,1775621440702,-151.0,0.00011401,2]
[420020947,1775621440712,-1924.47,0.00011422,2]
[420020948,1775621440721,-1658.612048,0.0001144,2]
[420020949,1775621440730,-708.496524,0.0001144,2]
[420020950,1775621440740,-193.087198,0.00011465,2]
[420020951,1775621440750,-1000.0,0.00011479,2]
[420020952,1775621440759,-150.0,0.000115,2]
[420020953,1775621440768,-500.0,0.00011525,2]
[420020954,1775621440777,-1591.175117,0.00011525,2]
[420020955,1775621440786,-8593.87333092,0.000116,2]
[420020956,1775621440796,-20093.84505006,0.00011613,2]
[420020957,1775621440805,-500.54232895,0.00011621,2]
[420020958,1775621440815,-1000.0,0.00011621,2]
[420020959,1775621440824,-1000.0,0.00011621,2]
[420020960,1775621440834,-500.0,0.00011621,2]
[420020961,1775621440844,-150.0,0.00011625,2]
[420020962,1775621440853,-500.0,0.00011625,2]
[420020963,1775621440863,-500.0,0.00011625,2]
[420020964,1775621440872,-153.37566176,0.00011625,2]
[420020965,1775621440881,-420.12756453,0.00011625,2]
[420020966,1775621440890,-500.0,0.00011625,2]
[420020967,1775621440899,-150.0,0.00011625,2]
[420020968,1775621440908,-272.94970253,0.00011625,2]
[420020969,1775621440918,-500.0,0.00011625,2]
[420020970,1775621440927,-150.0,0.00011625,2]
[420020971,1775621440936,-500.0,0.00011625,2]
[420020972,1775621440946,-150.0,0.00011625,2]
[420020973,1775621440955,-500.0,0.00011625,2]
[420020974,1775621440964,-150.0,0.00011625,2]
[420020975,1775621440974,-500.0,0.00011625,2]
[420020976,1775621440983,-500.0,0.00011625,2]
[420020977,1775621440993,-182.15202066,0.00011625,2]
[420020978,1775621441002,-500.0,0.00011625,2]
[420020979,1775621441011,-500.0,0.00011625,2]
[420020980,1775621441020,-595.10163207,0.00011625,2]
[420020981,1775621441029,-500.0,0.00011625,2]
[420020982,1775621441039,-500.0,0.00011625,2]
[420020983,1775621441048,-150.0,0.00011625,2]
[420020984,1775621441057,-500.0,0.00011625,2]
[420020985,1775621441066,-151.55394064,0.00011625,2]
[420020986,1775621441076,-500.0,0.00011625,2]
[420020987,1775621441086,-500.0,0.00011625,2]
[420020988,1775621441094,-226.83643244,0.00011625,2]
[420020989,1775621441103,-150.0,0.00011625,2]
[420020990,1775621441112,-500.0,0.00011625,2]
[420020991,1775621441121,-500.0,0.00011625,2]
[420020992,1775621441131,-500.0,0.00011625,2]
[420020993,1775621441140,-500.0,0.00011625,2]
[420020994,1775621441150,-500.0,0.00011625,2]
[420020995,1775621441159,-500.0,0.00011625,2]
[420020996,1775621441168,-500.0,0.00011625,2]
[420020997,1775621441178,-500.0,0.00011625,2]
[420020998,1775621441187,-500.0,0.00011625,2]
[420020999,1775621441196,-500.0,0.00011625,2]
[420021000,1775621441206,-500.0,0.00011625,2]
[420021001,1775621441215,-381.23774932,0.00011625,2]
[420021002,1775621441224,-500.0,0.00011625,2]
[420021003,1775621441234,-500.0,0.00011625,2]
[420021004,1775621441243,-500.0,0.00011625,2]
[420021005,1775621441252,-500.0,0.00011625,2]
[420021006,1775621441262,-500.0,0.00011625,2]
[420021007,1775621441271,-500.0,0.00011625,2]
[420021008,1775621441281,-500.0,0.00011625,2]
[420021009,1775621441290,-341.376807,0.00011625,2]
[420021010,1775621441300,-500.0,0.00011625,2]
[420021011,1775621441310,-500.0,0.00011625,2]
[420021012,1775621441320,-500.0,0.00011625,2]
[420021013,1775621441329,-500.0,0.00011625,2]
[420021014,1775621441338,-500.0,0.00011625,2]
[420021015,1775621441349,-399.40597196,0.00011625,2]
[420021016,1775621441358,-500.0,0.00011625,2]
[420021017,1775621441367,-500.0,0.00011625,2]
[420021018,1775621441376,-230.83426436,0.00011625,2]
[420021019,1775621441386,-500.0,0.00011625,2]
[420021020,1775621441395,-500.0,0.00011625,2]
[420021021,1775621441404,-339.81765262,0.00011625,2]
[420021022,1775621441414,-500.0,0.00011625,2]
[420021023,1775621441425,-500.0,0.00011625,2]
[420021024,1775621441435,-500.0,0.00011625,2]
[420021025,1775621441444,-388.39476597,0.00011625,2]
[420021026,1775621441454,-160.5097946,0.00011625,2]
[420021027,1775621441463,-151.26762084,0.00011625,2]
[420021028,1775621441472,-150.36042852,0.00011625,2]
[420021029,1775621441482,-150.88467267,0.00011625,2]
[420021030,1775621441492,-500.0,0.00011625,2]
[420021031,1775621441502,-500.0,0.00011625,2]
[420021032,1775621441511,-500.0,0.00011625,2]
[420021033,1775621441521,-500.0,0.00011625,2]
[420021034,1775621441531,-528.23575097,0.00011625,2]
[420021035,1775621441541,-500.0,0.00011625,2]
[420021036,1775621441551,-500.0,0.00011625,2]
[420021037,1775621441561,-500.0,0.00011625,2]
[420021038,1775621441571,-294.91635494,0.00011625,2]
[420021039,1775621441581,-208.37237059,0.00011625,2]
[420021040,1775621441591,-152.7979958,0.00011625,2]
[420021041,1775621441600,-150.0,0.00011625,2]
[420021042,1775621441610,-150.0,0.00011625,2]
[420021043,1775621441620,-729.0,0.00011625,2]
[420021044,1775621441630,-150.0,0.00011625,2]
[420021045,1775621441640,-729.0,0.00011625,2]
[420021046,1775621441650,-150.0,0.00011625,2]
[420021047,1775621441660,-729.0,0.00011625,2]
[420021048,1775621441669,-286.3666211,0.00011625,2]
[420021049,1775621441679,-729.0,0.00011625,2]
[420021050,1775621441689,-729.0,0.00011625,2]
[420021051,1775621441699,-500.0,0.00011625,2]
[420021052,1775621441709,-729.0,0.00011625,2]
[420021053,1775621441719,-520.29151548,0.00011625,2]
[420021054,1775621441728,-729.0,0.00011625,2]
[420021055,1775621441738,-729.0,0.00011625,2]
[420021056,1775621441749,-729.0,0.00011625,2]
[420021057,1775621441759,-729.0,0.00011625,2]
[420021058,1775621441769,-729.0,0.00011625,2]
[420021059,1775621441779,-729.0,0.00011625,2]
[420021060,1775621441790,-729.0,0.00011625,2]
[420021061,1775621441800,-729.0,0.00011625,2]
[420021062,1775621441809,-729.0,0.00011625,2]
[420021063,1775621441819,-729.0,0.00011625,2]
[420021064,1775621441830,-729.0,0.00011625,2]
[420021065,1775621441840,-500.0,0.00011625,2]
[420021066,1775621441851,-500.0,0.00011625,2]
[420021067,1775621441861,-500.0,0.00011625,2]
[420021068,1775621441870,-729.0,0.00011625,2]
[420021069,1775621441880,-500.0,0.00011625,2]
[420021070,1775621441890,-500.0,0.00011625,2]
[420021071,1775621441901,-500.0,0.00011625,2]
[420021072,1775621441911,-500.0,0.00011625,2]
[420021073,1775621441920,-500.0,0.00011625,2]
[420021074,1775621441930,-500.0,0.00011625,2]
[420021075,1775621441939,-500.0,0.00011625,2]
[420021076,1775621441950,-729.0,0.00011625,2]
[420021077,1775621441960,-500.0,0.00011625,2]
[420021078,1775621441970,-509.72471578,0.00011625,2]
[420021079,1775621441980,-729.0,0.00011625,2]
[420021080,1775621441989,-729.0,0.00011625,2]
[420021081,1775621441999,-729.0,0.00011625,2]
[420021082,1775621442008,-500.0,0.00011625,2]
[420021083,1775621442017,-500.0,0.00011625,2]
[420021084,1775621442026,-500.0,0.00011625,2]
[420021085,1775621442036,-500.0,0.00011625,2]
[420021086,1775621442045,-152.12238144,0.00011625,2]
[420021087,1775621442054,-729.0,0.00011625,2]
[420021088,1775621442064,-743.49073325,0.00011625,2]
[420021089,1775621442073,-150.0,0.00011625,2]
[420021090,1775621442083,-150.0,0.00011625,2]
[420021091,1775621442092,-150.0,0.00011625,2]
[420021092,1775621442102,-188.34372111,0.00011625,2]
[420021093,1775621442111,-500.0,0.00011625,2]
[420021094,1775621442121,-150.0,0.00011625,2]
[420021095,1775621442130,-150.0,0.00011625,2]
[420021096,1775621442140,-150.0,0.00011625,2]
[420021097,1775621442149,-150.0,0.00011625,2]
[420021098,1775621442159,-1538.0,0.00011625,2]
[420021099,1775621442168,-150.0,0.00011625,2]
[420021100,1775621442178,-1538.0,0.00011625,2]
[420021101,1775621442187,-1538.0,0.00011625,2]
[420021102,1775621442196,-158.03469882,0.00011625,2]
[420021103,1775621442206,-1538.0,0.00011625,2]
[420021104,1775621442215,-1538.0,0.00011625,2]
[420021105,1775621442225,-1538.0,0.00011625,2]
[420021106,1775621442235,-1538.0,0.00011625,2]
[420021107,1775621442245,-1538.0,0.00011625,2]
[420021108,1775621442256,-1538.0,0.00011625,2]
[420021109,1775621442265,-1538.0,0.00011625,2]
[420021110,1775621442274,-1538.0,0.00011625,2]
[420021111,1775621442284,-1538.0,0.00011625,2]
[420021112,1775621442294,-1538.0,0.00011625,2]
[420021113,1775621442303,-583.0,0.00011625,2]
[420021114,1775621442313,-1538.0,0.00011625,2]
[420021115,1775621442322,-583.0,0.00011625,2]
[420021116,1775621442333,-500.0,0.00011625,2]
[420021117,1775621442342,-1538.0,0.00011625,2]
[420021118,1775621442352,-583.0,0.00011625,2]
[420021119,1775621442361,-1538.0,0.00011625,2]
[420021120,1775621442371,-500.0,0.00011625,2]
[420021121,1775621442381,-583.0,0.00011625,2]
[420021122,1775621442391,-500.0,0.00011625,2]
[420021123,1775621442402,-583.0,0.00011625,2]
[420021124,1775621442411,-500.0,0.00011625,2]
[420021125,1775621442421,-583.0,0.00011625,2]
[420021126,1775621442431,-1538.0,0.00011625,2]
[420021127,1775621442441,-500.0,0.00011625,2]
[420021128,1775621442450,-583.0,0.00011625,2]
[420021129,1775621442461,-500.0,0.00011625,2]
[420021130,1775621442470,-583.0,0.00011625,2]
[420021131,1775621442479,-500.0,0.00011625,2]
[420021132,1775621442488,-583.0,0.00011625,2]
[420021133,1775621442498,-583.0,0.00011625,2]
[420021134,1775621442507,-500.0,0.00011625,2]
[420021135,1775621442517,-1538.0,0.00011625,2]
[420021136,1775621442526,-361.74732129,0.00011625,2]
[420021137,1775621442535,-583.0,0.00011625,2]
[420021138,1775621442545,-583.0,0.00011625,2]
[420021139,1775621442555,-583.0,0.00011625,2]
[420021140,1775621442565,-583.0,0.00011625,2]
[420021141,1775621442574,-583.0,0.00011625,2]
[420021142,1775621442584,-1538.0,0.00011625,2]
[420021143,1775621442593,-1538.0,0.00011625,2]
[420021144,1775621442603,-583.0,0.00011625,2]
[420021145,1775621442612,-583.0,0.00011625,2]
[420021146,1775621442622,-583.0,0.00011625,2]
[420021147,1775621442631,-1538.0,0.00011625,2]
[420021148,1775621442642,-583.0,0.00011625,2]
[420021149,1775621442651,-1538.0,0.00011625,2]
[420021150,1775621442660,-583.0,0.00011625,2]
[420021151,1775621442670,-583.0,0.00011625,2]
[420021152,1775621442679,-1538.0,0.00011625,2]
[420021153,1775621442689,-583.0,0.00011625,2]
[420021154,1775621442700,-1555.72513774,0.00011625,2]
[420021155,1775621442710,-583.0,0.00011625,2]
[420021156,1775621442719,-602.47425874,0.00011625,2]
[420021157,1775621442729,-166.66,0.00011686,2]
[420021158,1775621442738,-308.0,0.00011723,2]
[420021159,1775621442748,-2943.39,0.00011734,2]
[420021160,1775621442758,-424.26359691,0.00011746,2]
[420021161,1775621442768,-421.73,0.00011751,2]
[420021162,1775621442778,-500.0,0.00011799,2]
[420021163,1775621442788,-500.87166627,0.00011821,2]
[420021164,1775621442799,-1000.0,0.00011821,2]
[420021165,1775621442810,-1000.0,0.00011821,2]
[420021166,1775621442821,-1000.0,0.00011821,2]
[420021167,1775621442834,-504.16954086,0.00011821,2]
[420021168,1775621442844,-200.0,0.00011873,2]
[420021169,1775621442855,-1243.57659104,0.00011873,2]
[420021170,1775621442865,-420.0,0.00011874,2]
[420021171,1775621442876,-1680.0,0.00011874,2]
[420021172,1775621442886,-195.0,0.0001188,2]
[420021173,1775621442897,-195.0,0.0001188,2]
[420021174,1775621442907,-195.0,0.0001188,2]
[420021175,1775621442918,-195.0,0.0001188,2]
[420021176,1775621442928,-195.0,0.0001188,2]
[420021177,1775621442939,-5000.0,0.0001188,2]
[420021178,1775621442949,-193.0,0.0001188,2]
[420021179,1775621442960,-250.0,0.0001188,2]
[420021180,1775621442972,-600.0,0.0001189,2]
[420021182,1775621442982,-193.41865489,0.0001189,2]
[420021184,1775621442992,-250.0,0.0001189,2]
[420021186,1775621443002,-5000.0,0.0001189,2]
[420021187,1775621443012,-600.0,0.0001189,2]
[420021188,1775621443023,-600.0,0.0001189,2]
[420021189,1775621443034,-276.00185502,0.0001189,2]
[420021190,1775621443044,-300.0,0.0001189,2]
[420021191,1775621443055,-252.5045904,0.0001189,2]
[420021192,1775621443065,-5000.0,0.00011893,2]
[420021193,1775621443079,-216.86,0.00011909,2]
[420021194,1775621443089,-265.05,0.00011913,2]
[420021195,1775621443099,-1000.0,0.00011921,2]
[420021196,1775621443110,-1000.0,0.00011921,2]
[420021197,1775621443120,-255.0,0.00011965,2]
[420021198,1775621443130,-8593.87333092,0.00011971,2]
[420021199,1775621443140,-420.0,0.00011978,2]
[420021200,1775621443150,-20093.84505006,0.00011982,2]
[420021201,1775621443160,-1680.0,0.00011989,2]
[420021202,1775621443171,-166.66,0.00012037,2]
[420021203,1775621443181,-500.0,0.00012073,2]
[420021204,1775621443190,-400.0,0.00012117,2]
[420021205,1775621443201,-353.28,0.00012117,2]
[420021206,1775621443211,-400.0,0.00012121,2]
[420021207,1775621443221,-400.0,0.00012121,2]
[420021208,1775621443232,-400.0,0.00012121,2]
[420021209,1775621443242,-400.0,0.00012124,2]
[420021210,1775621443252,-400.0,0.00012124,2]
[420021211,1775621443262,-400.0,0.00012124,2]
[420021212,1775621443273,-400.0,0.00012124,2]
[420021213,1775621443283,-1393.05427862,0.00012168,2]
[420021215,1775621443294,-1500.0,0.00012168,2]
[420021217,1775621443304,-8593.87333092,0.00012341,2]
[420021219,1775621443315,-500.0,0.00012347,2]
[420021220,1775621443326,-20093.84505006,0.00012351,2]
[420021223,1775621443337,-1500.0,0.00012368,2]
[420021224,1775621443348,-1500.0,0.00012368,2]
[420021227,1775621443360,-537.33935184,0.00012368,2]
[420021228,1775621443371,-166.66,0.00012388,2]
[420021230,1775621443381,-421.73,0.00012397,2]
[420021232,1775621443391,-200.0,0.00012421,2]
[420021234,1775621443401,-1289.58892491,0.00012421,2]
[420021236,1775621443411,-2000.0,0.00012436,2]
[420021238,1775621443421,-3277.8,0.00012467,2]
[420021240,1775621443431,-391.89335958,0.00012468,2]
[420021242,1775621443442,-1500.0,0.00012468,2]
[420021244,1775621443451,-578.20924308,0.00012496,2]
[420021246,1775621443460,-623.58710448,0.00012496,2]
[420021248,1775621443470,-181.08010149,0.00012496,2]
[420021250,1775621443481,-1235.18214925,0.00012496,2]
[420021251,1775621443491,-500.0,0.00012496,2]
[420021252,1775621443501,-200.0,0.00012496,2]
[420021253,1775621443512,-431.0128461,0.00012496,2]
[420021254,1775621443522,-174.61919141,0.00012496,2]
[420021255,1775621443531,-591.41950389,0.00012496,2]
[420021256,1775621443541,-743.50770149,0.00012496,2]
[420021257,1775621443551,-170.0,0.00012496,2]
[420021258,1775621443563,-170.0,0.00012496,2]
[420021259,1775621443575,-170.0,0.00012496,2]
[420021260,1775621443585,-170.0,0.00012496,2]